bitfinex/quotes_SOLUSD_20250424
["timestamp","ask_amount","ask_price","bid_price","bid_amount"]
[1745456782274,0.03,150.47,150.43,35.9606994]
[1745456783086,9.9606994,150.46,150.43,26.0]
[1745456783289,9.9606994,150.45,150.43,26.0]
[1745456783489,9.9606994,150.44,150.43,26.0]
[1745456783795,9.9606994,150.44,150.42,26.0]
[1745456784292,9.9606994,150.45,150.42,26.0]
[1745456784594,9.9606994,150.46,150.42,26.0]
[1745456785895,9.9606994,150.45,150.42,26.0]
[1745456786484,6.67589665,150.47,150.42,26.0]
[1745456786783,9.9606994,150.46,150.42,26.0]
[1745456788193,6.67589665,150.47,150.42,26.0]
[1745456788394,0.03,150.47,150.43,9.9606994]
[1745456788706,0.03,150.47,150.46,35.9606994]
[1745456789083,0.03,150.47,150.46,26.0]
[1745456789276,0.03,150.47,150.46,35.9606994]
[1745456791499,0.03,150.47,150.46,36.10286097]
[1745456795478,0.03,150.47,150.46,42.74914569]
[1745456797613,0.03,150.47,150.46,62.7275805]
[1745456798389,0.03,150.51,150.5,36.10286097]
[1745456799703,0.03,150.51,150.5,42.74737924]
[1745456800107,0.03,150.51,150.5,61.3970281]
[1745456800714,0.03,150.52,150.51,0.14216157]
[1745456800903,0.03,150.52,150.51,11.4309369]
[1745456801283,0.03,150.53,150.52,18.79181043]
[1745456801489,0.03,150.53,150.52,35.39614522]
[1745456802501,0.03,150.54,150.53,0.14216157]
[1745456802802,0.03,150.6,150.57,0.14216157]
[1745456803108,0.03,150.6,150.58,10.10286097]
[1745456804911,0.03,150.6,150.58,44.07161097]
[1745456805381,0.03,150.6,150.58,37.4306228]
[1745456806005,0.03,150.6,150.58,18.07161097]
[1745456806207,0.03,150.6,150.58,36.72125983]
[1745456809634,0.03,150.6,150.58,50.14125983]
[1745456809922,0.03,150.6,150.59,0.14216157]
[1745456810121,0.03,150.63,150.62,26.14216157]
[1745456810324,0.03,150.63,150.62,36.10286097]
[1745456811815,0.03,150.63,150.62,26.0]
[1745456812007,11.6315994,150.63,150.54,21.39002833]
[1745456812211,9.9606994,150.62,150.58,26.0]
[1745456812415,9.9606994,150.62,150.58,0.14216157]
[1745456812609,9.9606994,150.61,150.54,14.74755248]
[1745456812915,9.9606994,150.61,150.57,0.14216157]
[1745456813216,9.9606994,150.62,150.57,35.9606994]
[1745456813398,15.51215193,150.62,150.57,41.51215193]
[1745456813913,22.15142239,150.62,150.57,41.51215193]
[1745456816626,1.6709,150.63,150.59,15.51215193]
[1745456818230,1.6709,150.63,150.61,15.51215193]
[1745456819612,0.03,150.63,150.62,16.83977463]
[1745456819826,0.03,150.63,150.62,16.9819362]
[1745456820327,0.03,150.63,150.62,23.62116073]
[1745456820830,0.03,150.63,150.62,16.9819362]
[1745456821309,0.03,150.63,150.62,23.62116073]
[1745456821823,0.03,150.63,150.62,16.9819362]
[1745456822727,0.03,150.63,150.62,15.6543135]
[1745456823105,0.03,150.63,150.61,15.51215193]
[1745456823710,0.03,150.63,150.62,15.51215193]
[1745456825913,0.03,150.63,150.58,7.96847264]
[1745456825914,0.03,150.63,150.54,13.42]
[1745456826129,17.06555193,150.62,150.57,15.51215193]
[1745456826507,17.06555193,150.62,150.57,41.51215193]
[1745456826917,17.06555193,150.62,150.57,15.51215193]
[1745456827116,17.06555193,150.62,150.57,41.51215193]
[1745456827331,1.5534,150.62,150.58,15.51215193]
[1745456827629,1.5534,150.62,150.6,15.51215193]
[1745456828534,1.5534,150.62,150.59,15.51215193]
[1745456829233,1.5534,150.62,150.58,15.6543135]
[1745456829942,1.5534,150.62,150.58,0.14216157]
[1745456829943,17.06555193,150.62,150.58,0.14216157]
[1745456831533,1.5534,150.62,150.58,15.6543135]
[1745456831740,1.5534,150.62,150.59,15.51215193]
[1745456833539,1.5534,150.62,150.58,0.14216157]
[1745456833729,1.5534,150.62,150.58,15.6543135]
[1745456834544,1.5534,150.62,150.6,26.0]
[1745456834837,0.03,150.63,150.61,15.51215193]
[1745456835231,0.03,150.63,150.62,15.51215193]
[1745456835738,0.03,150.63,150.61,41.51215193]
[1745456837728,0.03,150.63,150.62,15.51215193]
[1745456843743,0.03,150.63,150.62,26.0]
[1745456843934,0.03,150.63,150.62,41.6543135]
[1745456848353,0.03,150.63,150.62,26.0]
[1745456848535,0.03,150.63,150.6,0.14216157]
[1745456848536,0.03,150.63,150.6,26.0]
[1745456848845,0.03,150.63,150.55,1.32753843]
[1745456848846,22.18096868,150.63,150.58,41.51215193]
[1745456849436,22.18096868,150.63,150.57,0.14216157]
[1745456849437,9.92606767,150.62,150.57,9.92606767]
[1745456849625,1.5841,150.61,150.58,9.92606767]
[1745456851246,1.5841,150.61,150.57,26.0]
[1745456851441,1.5841,150.61,150.58,15.50990298]
[1745456851948,1.5841,150.61,150.59,15.50990298]
[1745456852125,1.5841,150.61,150.6,15.50990298]
[1745456852439,1.5841,150.61,150.58,15.50990298]
[1745456852637,1.5841,150.61,150.57,41.50990298]
[1745456853650,1.5841,150.61,150.58,15.50990298]
[1745456855357,1.5841,150.61,150.59,15.50990298]
[1745456855847,1.5841,150.61,150.58,15.50990298]
[1745456856229,1.5841,150.61,150.59,15.50990298]
[1745456857655,1.5841,150.61,150.58,15.50990298]
[1745456858437,1.5841,150.61,150.56,26.0]
[1745456858438,15.50990298,150.6,150.56,26.0]
[1745456858635,15.50990298,150.59,150.54,15.50990298]
[1745456858839,15.50990298,150.59,150.54,41.50990298]
[1745456859037,15.50990298,150.58,150.54,26.0]
[1745456860638,22.15113741,150.58,150.54,26.0]
[1745456861355,1.5826,150.55,150.53,0.063]
[1745456864936,1.5826,150.59,150.54,15.50990298]
[1745456865143,1.5826,150.59,150.56,15.50990298]
[1745456867365,8.22322435,150.59,150.55,15.50990298]
[1745456868565,23.73312733,150.59,150.54,15.50990298]
[1745456870362,8.22322435,150.59,150.55,15.50990298]
[1745456871436,1.5826,150.59,150.56,15.50990298]
[1745456873253,1.5826,150.59,150.56,9.93028565]
[1745456873254,8.22322439,150.59,150.56,9.93028565]
[1745456873473,8.22322439,150.59,150.55,9.93028565]
[1745456874642,18.15351004,150.59,150.54,9.93028565]
[1745456874845,8.22322439,150.59,150.55,9.93028565]
[1745456876551,18.15351004,150.59,150.54,9.93028565]
[1745456877644,18.15351004,150.59,150.53,0.063]
[1745456877645,9.93028565,150.56,150.53,0.063]
[1745456878166,9.93028565,150.54,150.53,0.063]
[1745456878663,16.5730384,150.54,150.53,0.063]
[1745456878963,6.64275275,150.54,150.53,0.063]
[1745456880478,9.93028565,150.56,150.53,0.063]
[1745456880651,1.5826,150.59,150.55,9.93028565]
[1745456880840,1.5826,150.59,150.53,0.063]
[1745456881042,1.5826,150.59,150.57,9.93028565]
[1745456881738,1.5826,150.59,150.56,9.93028565]
[1745456883462,8.22330152,150.59,150.56,15.51562325]
[1745456883675,8.22330152,150.59,150.55,15.51562325]
[1745456884146,23.73892477,150.59,150.53,15.57862325]
[1745456884352,15.51562325,150.57,150.53,0.063]
[1745456884567,6.64275275,150.54,150.53,0.063]
[1745456885366,6.64242828,150.55,150.53,0.063]
[1745456885768,22.15805153,150.55,150.53,0.063]
[1745456885947,6.64242828,150.55,150.53,0.063]
[1745456887675,13.34,150.57,150.54,15.51562325]
[1745456887866,13.34,150.57,150.53,0.063]
[1745456887867,6.64127471,150.58,150.55,15.51562325]
[1745456888068,6.64127471,150.58,150.54,15.51562325]
[1745456888667,15.51562325,150.57,150.53,0.063]
[1745456889775,6.64187035,150.56,150.53,0.063]
[1745456893882,22.1574936,150.56,150.53,0.063]
[1745456895184,6.64187035,150.56,150.53,0.063]
[1745456896877,22.1574936,150.56,150.53,0.063]
[1745456900186,15.51562325,150.54,150.53,0.063]
[1745456900880,17.07482325,150.54,150.53,0.063]
[1745456901387,52.10216947,150.56,150.53,0.063]
[1745456902586,19.98187035,150.56,150.53,0.063]
[1745456903398,19.98187035,150.56,150.53,15.57862325]
[1745456903399,13.34,150.56,150.53,15.57862325]
[1745456904587,13.34,150.56,150.54,15.51562325]
[1745456905084,51.05984886,150.6,150.53,0.063]
[1745456905085,1.5592,150.62,150.55,15.51562325]
[1745456905283,1.5592,150.62,150.59,9.92594947]
[1745456905284,8.19842453,150.62,150.59,9.92594947]
[1745456906398,6.63922453,150.62,150.59,9.92594947]
[1745456906587,6.66893293,150.63,150.58,9.92594947]
[1745456906890,9.92594947,150.62,150.57,9.92594947]
[1745456907262,15.51418689,150.62,150.57,15.51418689]
[1745456908663,6.63966536,150.61,150.57,15.51418689]
[1745456908993,6.63966536,150.61,150.54,0.14216157]
[1745456909182,6.63966536,150.61,150.57,15.51418689]
[1745456909587,38.75301565,150.61,150.56,15.51418689]
[1745456909794,23.23882876,150.61,150.57,15.51418689]
[1745456909977,38.75301565,150.61,150.56,15.51418689]
[1745456912288,15.51418689,150.58,150.53,20.57718689]
[1745456912587,15.51418689,150.58,150.53,5.063]
[1745456912977,6.64142923,150.57,150.53,5.063]
[1745456913170,6.64142923,150.57,150.53,20.57718689]
[1745456913971,22.15561612,150.57,150.53,5.063]
[1745456916994,15.51418689,150.55,150.53,5.063]
[1745456917182,15.51418689,150.56,150.53,5.063]
[1745456917998,15.51418689,150.54,150.53,5.063]
[1745456918299,49.00673575,150.54,150.53,5.063]
[1745456918987,55.6494885,150.54,150.53,5.063]
[1745456920893,36.99983964,150.54,150.53,5.063]
[1745456921295,19.98275275,150.54,150.53,5.063]
[1745456925605,35.49693964,150.54,150.53,5.063]
[1745456926705,55.79465007,150.54,150.53,1e-08]
[1745456926874,44.64964886,150.52,150.51,0.063]
[1745456927071,60.16383575,150.52,150.51,0.063]
[1745456927992,66.80747114,150.52,150.51,0.063]
[1745456933396,61.24030953,150.52,150.51,0.063]
[1745456945196,74.58030953,150.52,150.51,0.063]
[1745456949128,74.7224711,150.52,150.51,1e-08]
[1745456949293,18.64964886,150.51,150.5,1e-08]
[1745456949491,28.59667414,150.51,150.5,1e-08]
[1745456949795,35.24075094,150.51,150.5,1e-08]
[1745456950599,6.6440768,150.51,150.5,1e-08]
[1745456953318,23.28702528,150.52,150.5,1e-08]
[1745456953319,19.98375893,150.52,150.5,1e-08]
[1745456953918,13.34,150.52,150.5,1e-08]
[1745456954101,29.92889563,150.56,150.51,9.94702528]
[1745456954308,55.92889563,150.56,150.51,9.94702528]
[1745456954603,9.94702528,150.55,150.5,9.94702529]
[1745456954816,19.98187035,150.56,150.51,9.94702528]
[1745456955020,29.92889563,150.56,150.51,9.94702528]
[1745456956408,6.6415982,150.57,150.54,9.94702528]
[1745456956821,13.37,150.6,150.56,9.94702528]
[1745456957013,13.37,150.6,150.58,9.94702528]
[1745456957215,6.67028131,150.6,150.57,9.94702528]
[1745456957399,6.67028131,150.6,150.56,9.94702528]
[1745456958012,6.67028131,150.6,150.57,9.94702528]
[1745456958422,0.03,150.6,150.57,9.94702528]
[1745456958611,0.03,150.6,150.52,9.4698249]
[1745456958920,0.03,150.6,150.58,9.94702528]
[1745456961233,0.03,150.6,150.57,9.94702528]
[1745456961600,0.03,150.6,150.54,26.0]
[1745456961805,0.03,150.6,150.57,9.94702528]
[1745456962528,0.03,150.6,150.58,9.94702528]
[1745456963931,9.97702528,150.6,150.55,35.94702528]
[1745456964519,9.97702528,150.6,150.55,9.94702528]
[1745456964728,6.64054718,150.59,150.55,9.94702528]
[1745456966830,0.03,150.6,150.56,9.94702528]
[1745456968135,6.67010624,150.6,150.56,9.94702528]
[1745456969310,6.67010624,150.6,150.57,9.94702528]
[1745456969831,6.67010624,150.6,150.56,9.94702528]
[1745456970133,6.67010624,150.6,150.53,26.0]
[1745456970334,6.67010624,150.6,150.56,9.94702528]
[1745456973948,16.61713152,150.6,150.55,9.94702528]
[1745456974148,9.94702528,150.57,150.52,9.94702528]
[1745456974438,9.94702528,150.56,150.51,9.94702528]
[1745456974617,9.94702528,150.58,150.53,9.94702528]
[1745456975440,23.28702528,150.59,150.54,9.94702528]
[1745456975655,13.34,150.59,150.55,9.94702528]
[1745456976019,16.61713152,150.6,150.55,9.94702528]
[1745456978444,6.67010624,150.6,150.56,9.94702528]
[1745456978747,6.67010624,150.6,150.55,9.94702528]
[1745456978748,16.61713152,150.6,150.55,9.94702528]
[1745456980448,6.67010624,150.6,150.56,9.94702528]
[1745456981226,16.61713152,150.6,150.55,9.94702528]
[1745456981634,9.94702528,150.59,150.54,9.94702528]
[1745456982350,6.64098817,150.58,150.54,9.94702528]
[1745456985326,6.64098817,150.58,150.52,0.14216157]
[1745456985327,6.64070411,150.59,150.55,9.94702528]
[1745456985732,6.64070411,150.59,150.56,9.94702528]
[1745456987556,6.67010624,150.6,150.56,9.94702528]
[1745456992443,0.03,150.6,150.57,9.94702528]
[1745456993452,9.97702528,150.6,150.56,9.94702528]
[1745456993640,9.97702528,150.6,150.55,9.94702528]
[1745456994234,9.94702528,150.59,150.54,35.94702528]
[1745456994856,9.97702528,150.6,150.55,9.94702528]
[1745456995057,6.64054718,150.59,150.55,9.94702528]
[1745456996866,16.58757246,150.59,150.5,6.48370001]
[1745456997067,9.94702528,150.56,150.5,6.48370001]
[1745456997356,9.94702528,150.57,150.51,9.94702528]
[1745456998241,6.64187035,150.56,150.51,9.94702528]
[1745456999664,6.64187035,150.56,150.5,1e-08]
[1745456999665,9.94702528,150.53,150.5,1e-08]
[1745456999834,33.1935715,150.56,150.51,9.94702528]
[1745457000435,33.1935715,150.56,150.5,9.94702529]
[1745457000668,9.94702528,150.54,150.5,1e-08]
[1745457000842,9.94702528,150.53,150.5,1e-08]
[1745457001039,9.94702528,150.55,150.5,9.94702529]
[1745457001444,6.64187035,150.56,150.5,9.94702529]
[1745457001638,6.64187035,150.56,150.51,9.94702528]
[1745457001946,16.58889563,150.56,150.51,9.94702528]
[1745457002869,13.34,150.58,150.55,9.94702528]
[1745457003177,19.98115936,150.58,150.55,9.94702528]
[1745457003335,19.98115936,150.58,150.54,9.94702528]
[1745457007362,19.98115936,150.58,150.55,9.94702528]
[1745457008069,19.98115936,150.58,150.54,9.94702528]
[1745457008275,9.94702528,150.55,150.5,9.94702529]
[1745457008457,9.94702528,150.54,150.5,1e-08]
[1745457009674,6.64319404,150.53,150.5,1e-08]
[1745457009970,9.94702528,150.52,150.5,1e-08]
[1745457010343,33.19820443,150.53,150.5,1e-08]
[1745457012056,9.94702528,150.52,150.5,1e-08]
[1745457012964,33.19820443,150.53,150.5,1e-08]
[1745457013858,16.59021932,150.53,150.5,1e-08]
[1745457017980,9.94702528,150.51,150.5,1e-08]
[1745457018670,16.59110208,150.51,150.5,1e-08]
[1745457019763,35.24075094,150.51,150.5,1e-08]
[1745457019968,37.03451251,150.51,150.5,1e-08]
[1745457032984,38.03451251,150.51,150.5,1e-08]
[1745457035696,37.03451251,150.51,150.5,1e-08]
[1745457040090,27.08748723,150.51,150.5,1e-08]
[1745457040281,37.03451251,150.51,150.5,1e-08]
[1745457043888,26.0,150.48,150.47,0.063]
[1745457044186,49.28702528,150.48,150.47,0.063]
[1745457046093,55.93242666,150.48,150.47,0.063]
[1745457046593,74.58207552,150.48,150.47,0.063]
[1745457047809,45.98540138,150.48,150.47,0.063]
[1745457050499,55.93242666,150.48,150.47,0.063]
[1745457054222,74.58207552,150.48,150.47,0.063]
[1745457054396,26.0,150.45,150.44,0.063]
[1745457054712,35.94702528,150.45,150.44,0.063]
[1745457055583,51.29637534,150.45,150.44,0.063]
[1745457055792,61.24340062,150.45,150.44,0.063]
[1745457056711,32.64672648,150.45,150.44,0.063]
[1745457056882,6.64672648,150.45,150.44,0.063]
[1745457059388,6.64628472,150.46,150.44,0.063]
[1745457060391,28.59667414,150.45,150.44,0.063]
[1745457061497,35.24340062,150.45,150.44,0.063]
[1745457070215,6.64672648,150.45,150.44,0.063]
[1745457070516,6.646465,150.46,150.44,0.063]
[1745457070902,6.64584302,150.47,150.44,0.063]
[1745457071616,16.5928683,150.47,150.44,0.063]
[1745457073118,9.94702528,150.46,150.44,0.063]
[1745457074804,9.94702528,150.45,150.44,0.063]
[1745457075022,16.59375176,150.45,150.44,0.063]
[1745457076428,18.64964886,150.44,150.43,0.063]
[1745457076722,28.59667414,150.44,150.43,0.063]
[1745457077106,35.24384244,150.44,150.43,0.063]
[1745457079802,16.59419358,150.44,150.43,0.063]
[1745457080408,6.6471683,150.44,150.43,0.063]
[1745457080610,16.59419358,150.44,150.43,0.063]
[1745457080805,6.6471683,150.44,150.43,0.063]
[1745457081727,6.64672648,150.45,150.43,0.063]
[1745457082228,16.59375176,150.45,150.43,0.063]
[1745457083702,9.94702528,150.44,150.43,0.063]
[1745457084109,28.59667414,150.44,150.43,0.063]
[1745457085031,6.64672648,150.45,150.43,0.063]
[1745457085218,9.94702528,150.44,150.43,0.063]
[1745457086132,6.64672648,150.45,150.43,0.063]
[1745457091031,6.64641654,150.46,150.43,0.063]
[1745457091705,6.64601937,150.47,150.44,9.94702528]
[1745457094642,6.64601937,150.47,150.43,10.01002528]
[1745457095216,6.64601937,150.47,150.43,0.063]
[1745457095411,16.59304465,150.47,150.43,0.063]
[1745457096514,6.64601937,150.47,150.43,10.01002528]
[1745457106066,13.34,150.48,150.45,9.94702528]
[1745457106226,6.6440768,150.51,150.46,9.94702528]
[1745457106551,6.6440768,150.51,150.47,9.94702528]
[1745457106848,6.6440768,150.51,150.46,9.94702528]
[1745457110649,16.59110208,150.51,150.46,9.94702528]
[1745457111551,6.6440768,150.51,150.47,9.94702528]
[1745457111766,33.20129409,150.51,150.43,26.063]
[1745457111931,9.94702528,150.49,150.44,9.94702528]
[1745457112132,9.94702528,150.48,150.43,10.01002528]
[1745457112450,9.94702528,150.47,150.43,0.063]
[1745457112850,9.94702528,150.47,150.43,10.01002528]
[1745457113347,35.94702528,150.48,150.43,10.01002528]
[1745457113860,6.64584302,150.47,150.43,10.01002528]
[1745457115347,16.5928683,150.47,150.43,0.063]
[1745457117755,6.64584302,150.47,150.43,10.01002528]
[1745457121269,6.64584302,150.47,150.43,0.063]
[1745457121469,9.94702528,150.44,150.43,0.063]
[1745457121771,28.59667414,150.44,150.43,0.063]
[1745457121951,26.0,150.41,150.4,0.063]
[1745457122268,54.59667414,150.41,150.4,0.063]
[1745457123170,61.24516825,150.41,150.4,0.063]
[1745457125787,62.86266825,150.41,150.4,0.063]
[1745457129876,18.64964886,150.4,150.39,0.063]
[1745457130079,28.59667414,150.4,150.39,0.063]
[1745457130493,34.26599411,150.41,150.39,0.063]
[1745457130818,42.59551939,150.41,150.39,0.063]
[1745457131087,9.94702528,150.4,150.39,0.063]
[1745457133491,16.59596145,150.4,150.39,0.063]
[1745457136608,35.24561031,150.4,150.39,0.063]
[1745457138204,18.64964886,150.39,150.36,0.063]
[1745457138408,26.0,150.38,150.36,0.063]
[1745457138586,54.59667414,150.38,150.36,0.063]
[1745457138784,9.94702528,150.37,150.36,0.063]
[1745457139910,28.73883571,150.37,150.35,1e-08]
[1745457140112,61.38954068,150.36,150.35,1e-08]
[1745457143005,61.38954068,150.36,150.31,0.063]
[1745457143006,26.14216157,150.33,150.31,0.063]
[1745457143198,23.26702528,150.32,150.31,0.063]
[1745457144716,29.9195,150.32,150.31,0.063]
[1745457146297,48.71131043,150.32,150.31,0.063]
[1745457146485,58.65833571,150.32,150.31,0.063]
[1745457146692,48.71131043,150.32,150.31,0.063]
[1745457146891,26.0,150.29,150.28,0.063]
[1745457147101,54.59667414,150.29,150.28,0.063]
[1745457147304,56.33043571,150.29,150.28,0.063]
[1745457147503,56.33043571,150.29,150.28,1e-08]
[1745457147704,26.0,150.25,150.23,0.063]
[1745457147906,28.59667414,150.24,150.23,0.063]
[1745457148497,28.73883571,150.24,150.23,0.063]
[1745457148695,35.39485274,150.24,150.23,0.063]
[1745457149404,18.64964886,150.2,150.15,9.97702528]
[1745457149614,31.98964886,150.2,150.16,9.94702528]
[1745457149817,13.34,150.2,150.17,9.94702528]
[1745457149999,13.34,150.2,150.18,9.94702528]
[1745457150186,13.34,150.2,150.15,0.03]
[1745457150391,13.34,150.2,150.18,9.94702528]
[1745457150800,23.29605962,150.24,150.19,9.94702528]
[1745457150801,25.3060772,150.24,150.19,9.94702528]
[1745457150984,19.99642834,150.24,150.21,9.94702528]
[1745457153327,19.99642834,150.24,150.21,15.58820562]
[1745457155216,19.99642834,150.24,150.2,15.58820562]
[1745457155925,35.58463396,150.24,150.19,15.58820562]
[1745457156107,18.64964886,150.23,150.19,15.58820562]
[1745457156297,18.64964886,150.23,150.2,15.58820562]
[1745457157112,6.6569032,150.22,150.16,15.58820562]
[1745457157328,6.6569032,150.22,150.2,15.58820562]
[1745457161330,6.6569032,150.22,150.15,0.03]
[1745457161502,18.64964886,150.21,150.18,15.58820562]
[1745457161829,18.64964886,150.21,150.16,15.58820562]
[1745457161996,18.64964886,150.21,150.17,15.58820562]
[1745457162503,0.14216157,150.2,150.15,0.03]
[1745457162699,18.64964886,150.18,150.15,15.61820562]
[1745457162899,18.64964886,150.18,150.15,0.03]
[1745457163096,28.92820562,150.19,150.15,0.03]
[1745457163295,18.64964886,150.18,150.15,0.03]
[1745457163496,6.65911966,150.17,150.15,0.03]
[1745457163801,18.64964886,150.16,150.15,0.03]
[1745457164001,20.21904886,150.16,150.15,0.03]
[1745457165121,20.36121043,150.16,150.15,0.03]
[1745457165623,27.02077356,150.16,150.15,0.03]
[1745457166924,20.21904886,150.16,150.15,0.03]
[1745457169408,18.64964886,150.16,150.15,0.03]
[1745457173332,40.89741761,150.16,150.15,0.03]
[1745457173540,34.23785448,150.16,150.15,0.03]
[1745457173727,18.64964886,150.16,150.15,0.03]
[1745457174941,25.30921199,150.16,150.15,0.03]
[1745457175315,35.29731236,150.16,150.15,0.03]
[1745457175905,101.39187541,150.16,150.15,0.03]
[1745457176110,26.0,150.07,150.0,0.03]
[1745457176337,18.64964886,150.02,150.0,0.03]
[1745457176711,26.0,150.04,150.0,0.03]
[1745457176917,9.98810037,150.02,150.0,0.03]
[1745457177114,13.34,150.01,150.0,0.03]
[1745457177429,48.64397148,150.01,150.0,0.03]
[1745457177742,38.65587111,150.01,150.0,0.03]
[1745457178118,13.34,150.02,150.0,10.01810037]
[1745457178517,13.34,150.02,150.0,0.03]
[1745457179440,6.66622225,150.01,150.0,0.03]
[1745457179614,25.31587111,150.01,150.0,0.03]
[1745457179809,20.00591648,150.02,150.0,0.03]
[1745457180436,35.64147863,150.02,150.0,0.03]
[1745457180637,13.34,150.02,150.0,0.03]
[1745457180840,13.34,150.02,150.0,15.66556215]
[1745457181032,20.00591113,150.02,150.0,0.03]
[1745457182435,48.29971253,150.06,150.01,15.63556215]
[1745457182740,13.36,150.04,150.01,15.63556215]
[1745457183538,224.32851349,150.08,150.02,15.63556215]
[1745457183739,13.36,150.07,150.04,15.63556215]
[1745457183935,13.36,150.07,150.05,15.63556215]
[1745457184246,13.36,150.07,150.01,6.5337]
[1745457184247,28.99556215,150.07,150.01,6.5337]
[1745457184424,15.63556215,150.06,150.0,0.03]
[1745457184741,15.63556215,150.01,150.0,0.03]
[1745457184924,47.64521101,150.01,150.0,0.03]
[1745457185430,54.31143326,150.01,150.0,0.03]
[1745457189643,35.6617844,150.01,150.0,0.03]
[1745457189818,54.31143326,150.01,150.0,0.03]
[1745457192543,80.45359483,150.01,150.0,1e-08]
[1745457194753,80.31143326,150.01,150.0,1e-08]
[1745457196719,13.36,150.01,150.0,1e-08]
[1745457196933,20.02622225,150.01,150.0,1e-08]
[1745457198532,35.6617844,150.01,150.0,1e-08]
[1745457199839,54.31143326,150.01,150.0,1e-08]
[1745457204750,54.45359483,150.01,150.0,1e-08]
[1745457205129,54.45359483,150.01,149.99,1e-08]
[1745457205130,18.79181043,150.0,149.99,1e-08]
[1745457205330,76.06293473,150.0,149.99,1e-08]
[1745457205932,18.64964886,149.96,149.94,0.03]
[1745457206133,47.70521101,149.95,149.94,0.03]
[1745457206836,54.37410063,149.95,149.94,0.03]
[1745457207356,54.5162622,149.95,149.94,1e-08]
[1745457208238,44.64964886,149.91,149.85,0.03]
[1745457208434,15.63556215,149.89,149.85,0.03]
[1745457208733,15.63556215,149.88,149.85,0.03]
[1745457209156,22.30765127,149.88,149.85,0.03]
[1745457209969,22.30763053,149.88,149.85,0.03]
[1745457210465,15.63556215,149.88,149.85,0.03]
[1745457210654,40.95692596,149.89,149.85,0.03]
[1745457211076,13.42,149.9,149.86,15.63556215]
[1745457212267,35.72680218,149.9,149.85,15.66556215]
[1745457212455,20.09124003,149.9,149.85,15.66556215]
[1745457212773,35.72680218,149.9,149.85,15.66556215]
[1745457212975,20.09124003,149.9,149.86,15.63556215]
[1745457213270,15.63556215,149.89,149.85,0.03]
[1745457213577,15.63556215,149.88,149.85,0.03]
[1745457214460,34.28521101,149.86,149.85,0.03]
[1745457214946,40.95810571,149.86,149.85,0.03]
[1745457216678,41.10026728,149.86,149.85,0.03]
[1745457217566,26.0,149.83,149.79,0.03]
[1745457218071,15.63556215,149.81,149.79,0.03]
[1745457218378,15.63556215,149.8,149.79,0.03]
[1745457218769,0.14216157,149.78,149.76,3.08292454]
[1745457218951,61.73246673,149.77,149.76,3.08292454]
[1745457219272,80.52427716,149.77,149.76,3.08292454]
[1745457219571,18.79181043,149.76,149.65,6.0433]
[1745457219771,15.63556215,149.7,149.65,6.0433]
[1745457219949,13.44,149.72,149.66,15.63556215]
[1745457220149,13.44,149.72,149.65,6.0433]
[1745457220447,13.44,149.73,149.68,15.63556215]
[1745457220671,13.44,149.73,149.69,15.63556215]
[1745457220868,13.44,149.73,149.65,6.0433]
[1745457221075,20.11897566,149.73,149.65,6.0433]
[1745457221268,13.44,149.73,149.69,21.97404911]
[1745457221467,13.44,149.73,149.7,21.97404911]
[1745457221669,13.44,149.73,149.71,21.97404911]
[1745457221983,13.44,149.73,149.7,22.00404911]
[1745457222172,13.44,149.73,149.7,0.03]
[1745457222371,28.65234832,149.74,149.7,0.03]
[1745457222985,6.67792146,149.75,149.7,22.00404911]
[1745457223189,6.6774283,149.76,149.71,21.97404911]
[1745457223357,42.09006219,149.79,149.74,21.97404911]
[1745457223669,36.80604579,149.79,149.7,0.03]
[1745457223873,21.97404911,149.74,149.7,0.03]
[1745457224379,21.97404911,149.73,149.7,0.03]
[1745457224585,21.97404911,149.72,149.7,0.03]
[1745457225079,28.65362963,149.71,149.7,0.03]
[1745457227460,47.30327849,149.71,149.7,0.03]
[1745457228398,73.30327849,149.71,149.7,0.03]
[1745457230177,6.67958052,149.71,149.7,0.03]